bitfinex-derivatives/quotes_ETHF0:USTF0_20250217
["timestamp","ask_amount","ask_price","bid_price","bid_amount"]
[1739787650270,3.2078,2764.1,2763.9,0.00543016]
[1739787650469,2.728,2764.0,2763.9,0.00543016]
[1739787650972,2.727,2764.3,2763.9,0.72900016]
[1739787651171,2.727,2764.3,2763.9,0.00543016]
[1739787651368,3.87559833,2764.2,2763.9,0.00543016]
[1739787651679,3.2078,2764.0,2763.9,0.00543016]
[1739787651879,3.93135,2764.0,2763.9,0.00543016]
[1739787653390,3.2078,2764.0,2762.9,3.2078]
[1739787653696,3.2078,2763.7,2762.9,10.95091639]
[1739787653887,2.729,2763.6,2763.1,0.72378]
[1739787654493,2.729,2763.6,2762.9,10.95091639]
[1739787654695,6.60459833,2763.6,2762.9,10.95091639]
[1739787655090,6.60459833,2763.6,2763.1,0.72377]
[1739787655397,6.60459833,2763.6,2762.9,10.95091639]
[1739787655893,2.729,2763.6,2763.2,0.72374]
[1739787656194,2.729,2763.6,2763.3,0.72373]
[1739787656397,3.2078,2764.0,2763.6,0.72363]
[1739787656584,5.9378,2764.0,2763.6,0.72364]
[1739787657393,3.2078,2764.3,2763.7,7.69354504]
[1739787657596,3.2078,2764.3,2763.8,0.72358]
[1739787657890,3.2078,2764.3,2763.9,7.59242331]
[1739787658288,3.2078,2764.3,2764.2,0.7235]
[1739787658591,0.00543016,2764.4,2764.2,0.7235]
[1739787658592,0.00543016,2764.4,2764.3,0.72347]
[1739787658791,0.00543016,2764.4,2764.3,1.0996]
[1739787658998,0.00543016,2764.4,2764.3,9.47075978]
[1739787659392,3.2078,2764.9,2764.3,14.74728978]
[1739787659595,3.2078,2764.9,2764.3,9.30828978]
[1739787659794,2.726,2765.0,2764.3,9.30828978]
[1739787660296,2.727,2765.4,2764.8,3.2078]
[1739787660492,3.2078,2765.6,2764.8,3.2078]
[1739787660694,0.00543016,2765.4,2765.3,0.72321]
[1739787660889,0.00543016,2765.4,2765.1,3.2078]
[1739787661094,0.00543016,2765.4,2765.3,0.72321]
[1739787661497,0.00543016,2765.4,2765.3,7.60092948]
[1739787661695,2.73643016,2765.4,2764.8,0.00543016]
[1739787661900,3.87559833,2765.0,2764.8,0.00543016]
[1739787662795,3.87559833,2765.3,2765.1,0.72325]
[1739787662999,3.87559833,2765.3,2764.9,7.80450232]
[1739787663602,3.87559833,2765.0,2764.9,7.80450232]
[1739787663800,3.87559833,2765.0,2764.8,0.00543016]
[1739787665198,3.2078,2765.1,2764.9,7.64843533]
[1739787666400,3.2078,2765.1,2764.8,0.00543016]
[1739787666807,3.93107,2765.1,2764.8,0.00543016]
[1739787667404,3.2078,2765.1,2764.9,0.7233]
[1739787668304,3.2078,2765.1,2764.8,0.72877016]
[1739787668606,3.2078,2765.1,2764.8,0.72875016]
[1739787668796,3.2078,2765.1,2765.0,0.72329]
[1739787668997,3.2078,2765.1,2764.8,0.00543016]
[1739787669401,0.72329,2765.0,2764.8,0.00543016]
[1739787669600,4.59888833,2765.0,2764.8,0.00543016]
[1739787669801,3.87559833,2765.0,2764.8,0.00543016]
[1739787670002,0.72331,2764.9,2764.8,0.00543016]
[1739787670298,3.87559833,2765.0,2764.8,0.00543016]
[1739787670494,3.87559833,2765.0,2764.8,0.72875016]
[1739787670699,3.2078,2765.1,2764.8,0.72875016]
[1739787670998,3.2078,2765.1,2764.9,0.72331]
[1739787671301,3.2078,2765.1,2764.8,0.00543016]
[1739787671504,0.72331,2764.9,2764.8,0.00543016]
[1739787672402,0.72353,2764.1,2763.6,0.72364]
[1739787672592,6.60559833,2764.1,2763.5,3.7343]
[1739787672799,3.87559833,2763.8,2763.5,7.6563471]
[1739787673097,0.72364,2763.7,2763.1,1.27427]
[1739787673300,2.731,2763.6,2763.1,0.5505]
[1739787673600,0.00543016,2763.7,2763.3,7.53790103]
[1739787673793,2.73,2763.6,2763.5,0.72368]
[1739787673993,2.73,2763.6,2763.3,0.72372]
[1739787674908,2.73,2763.6,2763.2,7.71385679]
[1739787675903,2.73,2763.6,2763.3,0.72372]
[1739787676300,3.45366,2763.6,2763.2,8.43759679]
[1739787676500,2.73,2763.6,2763.2,7.71385679]
[1739787676701,2.73,2763.6,2763.5,0.72368]
[1739787676901,2.73,2763.6,2763.4,0.7237]
[1739787677203,2.73,2763.6,2763.5,0.72368]
[1739787677806,3.21323016,2763.7,2763.2,7.71385679]
[1739787678009,3.93686016,2763.7,2763.2,7.71385679]
[1739787678204,3.93686016,2763.7,2763.3,0.72373]
[1739787678402,3.21323016,2763.7,2763.2,7.71385679]
[1739787678602,0.72367,2763.6,2763.2,8.43760679]
[1739787678901,3.21323016,2763.7,2763.2,7.71385679]
[1739787679105,3.93687016,2763.7,2763.3,0.72371]
[1739787679309,3.93687016,2763.7,2763.3,0.72372]
[1739787679806,3.21323016,2763.7,2763.2,7.71385679]
[1739787680105,3.21323016,2763.7,2763.5,0.72368]
[1739787680403,3.21323016,2763.7,2763.2,7.71385679]
[1739787680616,3.21323016,2763.7,2763.6,0.72365]
[1739787680806,2.71543016,2763.7,2763.5,0.72368]
[1739787681209,2.71543016,2763.7,2763.6,0.72365]
[1739787681911,0.00543016,2763.7,2763.6,0.72365]
[1739787682108,0.00543016,2763.7,2763.6,11.4393963]
[1739787682905,7.08339833,2764.4,2764.2,0.72347]
[1739787683211,7.08339833,2764.4,2763.7,1.0865]
[1739787683513,0.72349,2764.3,2763.9,8.50703097]
[1739787684111,0.72348,2764.3,2764.0,0.72354]
[1739787684316,7.08882849,2764.4,2763.9,7.78346097]
[1739787684607,7.08882849,2764.4,2764.2,0.72349]
[1739787684812,7.08882849,2764.4,2763.9,7.78346097]
[1739787685014,0.72349,2764.3,2764.0,0.72355]
[1739787685315,0.72349,2764.3,2763.9,7.78346097]
[1739787685316,7.08882849,2764.4,2763.9,8.50702097]
[1739787685506,7.08882849,2764.4,2763.9,8.50703097]
[1739787685806,3.2078,2764.0,2763.9,7.78346097]
[1739787686009,3.87559833,2764.1,2763.9,7.78346097]
[1739787686207,0.72358,2763.9,2763.8,0.00543016]
[1739787686611,1.25698,2763.9,2763.8,0.00543016]
[1739787688113,0.5334,2763.9,2763.8,0.00543016]
[1739787688316,2.696,2763.9,2763.8,0.00543016]
[1739787688814,6.62738,2763.9,2763.8,0.00543016]
[1739787689014,3.87559833,2764.1,2763.8,0.00543016]
[1739787689314,2.706,2763.9,2763.8,0.00543016]
[1739787689707,3.42958,2763.9,2763.8,0.00543016]
[1739787689911,6.63738,2763.9,2763.8,0.00543016]
[1739787690317,2.706,2763.9,2763.8,0.00543016]
[1739787691010,2.706,2763.9,2763.8,0.72903016]
[1739787691210,2.706,2763.9,2763.8,0.00543016]
[1739787691406,3.42958,2763.9,2763.8,0.00543016]
[1739787692116,4.59926833,2763.6,2763.3,0.72372]
[1739787692406,3.87559833,2763.6,2763.4,0.7237]
[1739787692608,2.715,2763.9,2763.3,7.63124305]
[1739787692815,0.7236,2763.8,2763.5,0.72367]
[1739787693013,0.7236,2763.8,2763.4,1.0562]
[1739787693212,6.59059833,2763.9,2763.4,1.0562]
[1739787693517,7.31418833,2763.9,2763.6,0.72365]
[1739787693715,6.59059833,2763.9,2763.6,0.72365]
[1739787693916,7.31417833,2763.9,2763.6,0.72365]
[1739787694214,2.715,2763.9,2763.8,0.7236]
[1739787695919,2.715,2763.9,2763.5,12.42131538]
[1739787695920,0.72361,2763.8,2763.6,0.72364]
[1739787696121,0.72361,2763.8,2763.5,10.61213538]
[1739787696318,2.715,2763.9,2763.8,0.7236]
[1739787697410,3.87559833,2764.1,2764.0,0.72355]
[1739787697608,6.57859833,2764.1,2764.0,0.72355]
[1739787697814,2.703,2764.1,2764.0,0.72355]
[1739787698021,3.88102849,2764.4,2763.8,3.2078]
[1739787698227,3.88102849,2764.4,2764.3,0.72347]
[1739787698412,6.58202849,2764.4,2764.3,0.72347]
[1739787699309,3.88102849,2764.4,2764.3,0.72347]
[1739787700615,0.00543016,2764.4,2764.3,0.72347]
[1739787705516,0.00543016,2764.4,2764.3,8.25710122]
[1739787706315,0.5282,2765.3,2764.5,1.80851]
[1739787706518,2.683,2765.2,2765.1,0.72324]
[1739787706713,2.686,2765.5,2765.4,0.72318]
[1739787706923,3.40916,2765.5,2764.9,3.7497]
[1739787707119,2.686,2765.5,2764.9,11.44007674]
[1739787707320,0.72326,2765.2,2764.9,3.7497]
[1739787707619,4.59878833,2765.4,2765.1,0.72325]
[1739787707825,0.72321,2765.3,2765.0,7.69037674]
[1739787708027,0.72325,2765.2,2765.0,8.41364674]
[1739787708226,3.87559833,2765.4,2765.0,7.69037674]
[1739787708521,3.87559833,2765.4,2765.1,0.72325]
[1739787708727,4.59879833,2765.4,2765.1,0.72325]
[1739787708921,3.87559833,2765.4,2765.1,0.72325]
[1739787709121,3.87559833,2765.4,2765.0,7.69037674]
[1739787709322,0.72322,2765.3,2765.1,0.72325]
[1739787709622,3.87559833,2765.4,2765.0,7.69037674]
[1739787709818,3.87559833,2765.1,2765.0,8.41366674]
[1739787710027,3.87559833,2765.4,2765.0,7.69037674]
[1739787710422,3.87559833,2765.4,2765.2,0.72322]
[1739787710622,6.49371613,2765.5,2765.0,7.69037674]
[1739787710925,5.77053613,2765.5,2765.0,7.69037674]
[1739787711228,5.77053613,2765.5,2765.3,0.72321]
[1739787711424,6.49369613,2765.5,2765.3,0.72321]
[1739787711620,3.81469613,2765.5,2765.3,0.72321]
[1739787711926,6.48869613,2765.5,2765.3,0.72321]
[1739787712128,0.72318,2765.4,2765.0,7.69037674]
[1739787712424,6.48870613,2765.5,2765.3,0.7232]
[1739787712619,5.76553613,2765.5,2765.4,0.72318]
[1739787712822,5.76553613,2765.5,2765.2,0.72322]
[1739787713022,6.48871613,2765.5,2765.3,0.7232]
[1739787713217,0.72318,2765.4,2765.3,0.7232]
[1739787713431,5.76553613,2765.5,2765.0,7.69037674]
[1739787713631,0.7232,2765.4,2765.1,0.72324]
[1739787713921,0.7232,2765.4,2765.0,7.69037674]
[1739787714127,3.08610597,2765.2,2765.1,0.72326]
[1739787714619,3.08610597,2765.2,2765.0,7.69037674]
[1739787714819,3.80934597,2765.2,2765.0,8.41365674]
[1739787715224,3.80935597,2765.2,2765.0,8.41365674]
[1739787715422,3.80935597,2765.2,2765.0,7.69037674]
[1739787715617,3.08610597,2765.2,2765.0,7.69037674]
[1739787715823,0.72326,2765.1,2765.0,7.69037674]
[1739787716027,0.72329,2765.0,2764.9,0.00543016]
[1739787716327,3.38529,2765.0,2764.9,0.00543016]
[1739787716625,2.662,2765.0,2764.9,0.72874016]
[1739787717318,3.08610597,2765.2,2764.9,0.00543016]
[1739787717622,3.08610597,2765.2,2765.1,0.72326]
[1739787718219,2.662,2765.3,2764.9,3.21323016]
[1739787718421,0.00543016,2765.5,2765.2,3.2078]
[1739787718727,0.00543016,2765.5,2765.4,0.72318]
[1739787719115,3.2078,2766.0,2765.4,8.26540453]
[1739787719116,2.663,2766.0,2765.4,8.26540453]
[1739787719315,2.663,2766.0,2765.9,0.72305]
[1739787719730,3.5702,2766.6,2765.8,3.2078]
[1739787719926,3.08610597,2766.4,2766.1,0.72298]
[1739787720426,3.80904597,2766.4,2766.1,0.72298]
[1739787720628,3.2078,2766.3,2765.8,3.2078]
[1739787720929,0.72304,2766.0,2765.6,0.72312]
[1739787721125,3.86525462,2766.1,2765.4,3.2078]
[1739787721327,3.86525462,2765.8,2765.4,10.84834864]
[1739787721529,3.2078,2765.9,2765.8,0.72308]
[1739787722231,2.668,2766.2,2765.5,1.8079]
[1739787722431,2.668,2766.2,2766.1,0.723]
[1739787723228,2.668,2766.2,2765.7,3.2078]
[1739787723628,2.668,2766.2,2765.8,7.67483917]
[1739787723824,2.668,2766.2,2766.1,0.723]
[1739787724026,2.668,2766.2,2766.0,0.723]
[1739787724233,2.668,2766.2,2765.8,7.67483917]
[1739787724425,2.668,2766.2,2766.1,0.723]
[1739787724825,2.668,2766.2,2765.8,7.67483917]
[1739787725022,3.86525462,2766.1,2765.8,7.67483917]
[1739787725331,3.7796,2766.0,2765.4,3.2078]
[1739787725527,4.50264,2766.0,2765.4,3.2078]
[1739787725733,3.7796,2766.0,2765.5,7.6735107]
[1739787726532,2.668,2766.2,2766.1,0.72299]
[1739787726726,2.669,2766.3,2765.8,1.8077]
[1739787727031,2.669,2766.3,2766.2,0.72296]
[1739787727623,2.669,2766.3,2765.7,3.2078]
[1739787728023,4.58826462,2766.1,2765.9,7.70046882]
[1739787728224,3.86525462,2766.1,2765.9,0.72304]
[1739787728426,3.86525462,2766.1,2766.0,0.72303]
[1739787728626,3.86525462,2766.1,2766.0,8.45139796]
[1739787728927,3.86525462,2766.1,2766.0,0.72303]
[1739787729127,3.86525462,2766.1,2766.0,8.45139796]
[1739787729732,5.8768,2766.3,2766.0,7.72836796]
[1739787730039,3.86525462,2766.1,2765.8,7.69723171]
[1739787730231,0.72304,2766.0,2765.8,7.69723171]
[1739787730530,3.2078,2766.0,2765.3,4.3103]
[1739787730737,3.86525462,2765.4,2765.0,3.2078]
[1739787731543,0.72329,2765.0,2764.9,0.00543016]
[1739787731833,3.38429,2765.0,2764.9,0.00543016]
[1739787732037,0.72346,2764.4,2764.1,3.2078]
[1739787732334,3.86525462,2764.2,2763.8,7.25419229]
[1739787732536,3.86525462,2764.2,2763.4,3.2078]
[1739787732537,2.667,2764.1,2763.4,3.2078]
[1739787732739,2.667,2764.1,2763.7,0.72363]
[1739787733039,2.667,2764.1,2763.8,7.7254419]
[1739787733530,2.667,2764.1,2763.7,8.43252893]
[1739787733839,2.667,2764.1,2763.9,7.70891893]
[1739787734136,2.667,2764.1,2763.8,7.53579918]
[1739787734433,2.667,2764.1,2763.6,0.00543016]
[1739787734930,2.667,2764.1,2764.0,0.72355]
[1739787735635,0.00543016,2764.2,2764.1,0.72352]
[1739787735931,3.2078,2764.7,2764.1,6.5775]
[1739787736133,3.2078,2764.7,2764.6,0.72339]
[1739787736332,5.8728,2765.0,2764.8,0.72334]
[1739787736733,5.8728,2765.0,2764.7,0.72335]
[1739787737033,5.8728,2765.0,2764.3,3.2078]
[1739787737236,5.8728,2765.0,2764.4,7.5009923]
[1739787737435,3.86525462,2764.8,2764.4,0.72344]
[1739787737737,4.58860462,2764.8,2764.4,7.5077103]
[1739787737933,3.86525462,2764.8,2764.5,0.72341]
[1739787738127,6.5961,2765.0,2764.4,7.5077103]
[1739787738128,5.8728,2765.0,2764.7,0.72335]
[1739787738333,2.665,2765.0,2764.9,0.72331]
[1739787738737,2.665,2765.0,2764.6,3.2078]
[1739787738937,2.665,2765.0,2764.8,0.72333]
[1739787739139,0.00543016,2765.1,2764.7,7.45405971]
[1739787739338,0.00543016,2765.1,2765.0,0.72329]
[1739787739732,0.00543016,2765.1,2765.0,8.40822745]
[1739787739931,2.662,2765.8,2765.5,0.72313]
[1739787740242,2.662,2765.8,2765.6,0.72313]
[1739787740534,6.59289,2765.8,2765.3,0.7232]
[1739787740933,5.8698,2765.8,2765.6,0.72312]
[1739787741139,5.87523016,2765.8,2765.6,0.72312]
[1739787741334,5.87523016,2765.8,2765.7,8.49207547]
[1739787741538,5.87523016,2765.8,2765.7,7.76896547]
[1739787741742,5.87523016,2765.8,2765.4,7.76896547]
[1739787742045,0.72311,2765.7,2765.6,7.76896547]
[1739787742336,5.87523016,2765.8,2765.5,8.17856256]
[1739787742537,5.87523016,2765.8,2765.6,0.72312]
[1739787742729,5.87523016,2765.8,2765.6,7.45541256]
[1739787742934,5.87523016,2765.8,2765.3,0.00543016]
[1739787742935,3.86525462,2765.7,2765.3,0.00543016]
[1739787743348,6.59832016,2765.8,2765.4,0.72317]
[1739787743636,5.87523016,2765.8,2765.4,0.72316]
[1739787743843,5.87523016,2765.8,2765.3,0.00543016]
[1739787744044,0.72318,2765.4,2765.3,0.00543016]
[1739787744239,4.58837462,2765.7,2765.3,0.00543016]
[1739787744445,3.86525462,2765.7,2765.3,0.00543016]
[1739787744632,0.72314,2765.6,2765.3,0.00543016]
[1739787745141,0.72318,2765.4,2765.3,0.00543016]
[1739787745345,3.93098,2765.4,2765.3,0.00543016]
[1739787745842,3.86525462,2765.7,2765.3,0.00543016]
[1739787746042,3.93098,2765.5,2765.3,0.00543016]
[1739787746346,3.86525462,2765.7,2765.3,0.00543016]
[1739787746840,0.72318,2765.5,2765.3,0.00543016]
[1739787747041,0.72318,2765.4,2765.3,0.00543016]
[1739787747742,4.58843462,2765.4,2765.3,0.00543016]
[1739787748348,3.86525462,2765.4,2765.3,0.00543016]
[1739787749041,6.52625462,2765.4,2765.3,0.00543016]
[1739787749440,3.86525462,2765.4,2765.3,0.00543016]
[1739787749643,3.86525462,2765.4,2765.3,0.72864016]
[1739787749644,6.52625462,2765.4,2765.3,0.72864016]
[1739787749841,3.2078,2765.6,2765.3,0.00543016]
[1739787750040,3.2078,2765.6,2765.4,0.72317]
[1739787750748,3.2078,2765.6,2765.3,0.00543016]
[1739787751045,4.58843462,2765.4,2765.3,0.00543016]
[1739787751242,3.86525462,2765.4,2765.3,0.00543016]
[1739787751646,4.58843462,2765.4,2765.3,0.00543016]
[1739787752238,3.86525462,2765.4,2765.3,0.00543016]
[1739787752446,3.86525462,2765.4,2765.3,0.72864016]
[1739787752745,3.86525462,2765.4,2765.3,0.00543016]
[1739787753244,3.86525462,2765.4,2765.3,0.72864016]
[1739787753441,6.3951,2765.6,2765.3,0.72864016]
[1739787753442,6.3951,2765.6,2765.4,0.72318]
[1739787753642,2.661,2765.6,2765.3,0.00543016]
[1739787754152,2.661,2765.6,2765.5,0.72316]
[1739787754351,2.661,2765.6,2765.3,0.00543016]
[1739787755248,3.38414,2765.6,2765.4,0.72316]
[1739787755449,3.38414,2765.6,2765.3,0.00543016]
[1739787755450,2.661,2765.6,2765.3,0.00543016]
[1739787755651,0.72317,2765.5,2765.3,0.72864016]
[1739787755851,5.8688,2765.6,2765.3,0.00543016]
[1739787756046,0.72317,2765.5,2765.3,0.72863016]
[1739787756252,5.8688,2765.6,2765.3,0.00543016]
[1739787756453,5.8688,2765.6,2765.5,0.72316]
[1739787756952,2.661,2765.6,2765.5,0.72316]
[1739787757247,0.00543016,2765.8,2765.7,0.72311]
[1739787757454,2.66643016,2765.8,2765.3,0.00543016]
[1739787757645,2.66643016,2765.8,2765.6,0.72311]
[1739787757954,0.72311,2765.7,2765.6,0.72311]
[1739787758250,2.66643016,2765.8,2765.6,0.72313]
[1739787758448,0.00543016,2765.8,2765.7,0.72311]
[1739787763251,5.8688,2766.5,2765.7,7.39419527]
[1739787763550,5.8688,2766.5,2766.4,0.72292]
[1739787763959,5.8688,2766.5,2765.9,3.7565]
[1739787764156,5.8688,2766.5,2766.4,0.72292]
[1739787764455,5.8688,2766.5,2766.1,7.50734217]
[1739787764763,4.95315462,2766.6,2765.9,3.7565]
[1739787764764,8.33704462,2766.6,2766.4,0.72291]
[1739787764957,7.61415462,2766.6,2766.4,0.72291]
[1739787765153,4.95315462,2766.6,2766.2,7.50734217]
[1739787765454,0.36703017,2766.7,2766.2,0.28709975]
[1739787765455,2.66643016,2766.7,2766.2,0.28709975]
[1739787765644,0.00543016,2766.7,2766.6,0.72287]
[1739787766252,0.00543016,2766.7,2766.6,8.27038559]
[1739787766453,0.00543016,2766.7,2766.6,7.54751559]
[1739787766656,0.00543016,2766.7,2766.6,0.72287]
[1739787767252,3.87068478,2766.7,2766.4,0.7229]
[1739787767452,3.87068478,2766.7,2766.5,0.72287]
[1739787767657,0.72291,2766.5,2766.3,0.72295]
[1739787767859,3.86525462,2766.4,2766.3,0.72295]
[1739787768060,3.86525462,2766.4,2766.2,7.70709214]
[1739787768254,3.2078,2766.6,2766.2,7.70709214]
[1739787768649,3.08349014,2766.4,2766.2,7.70709214]
[1739787768853,3.80642014,2766.4,2766.2,7.70709214]
[1739787769060,3.08349014,2766.4,2766.2,7.70709214]
[1739787769356,3.80641014,2766.4,2766.1,3.2078]
[1739787769557,3.80641014,2766.4,2766.1,3.93078]
[1739787769759,3.08349014,2766.4,2766.1,3.2078]
[1739787770160,0.72297,2766.2,2766.1,3.2078]
[1739787770459,3.2078,2766.2,2765.3,3.21323016]
[1739787770650,3.08349014,2765.4,2765.3,3.21323016]
[1739787771056,5.74349014,2765.8,2765.7,0.72309]
[1739787771362,5.74349014,2765.8,2765.4,0.5715]
[1739787771860,5.74349014,2765.8,2765.4,0.72318]
[1739787772055,5.74349014,2765.8,2765.3,0.00543016]
[1739787772256,5.74349014,2765.8,2765.7,0.72311]
[1739787772663,5.74349014,2765.8,2765.3,3.21323016]
[1739787772959,5.74349014,2765.8,2765.7,0.72311]
[1739787773449,5.74349014,2765.8,2765.4,7.50924265]
[1739787773652,5.74349014,2765.8,2765.6,0.72311]
[1739787773849,5.74349014,2765.8,2765.7,0.72311]
[1739787774061,5.8678,2765.9,2765.4,7.50924265]
[1739787774258,5.8678,2765.9,2765.8,0.72308]
[1739787774453,3.2078,2765.9,2765.8,0.72308]
[1739787775560,3.2078,2765.9,2765.7,0.5708]
[1739787775866,3.08349014,2765.8,2765.6,0.562]
[1739787776057,3.08349014,2765.8,2765.7,0.72311]
[1739787776669,3.08349014,2765.8,2765.3,3.21323016]
[1739787776965,3.08349014,2765.8,2765.7,0.72311]
[1739787777556,3.08349014,2766.1,2766.0,0.72301]
[1739787778757,3.08349014,2766.1,2765.6,3.2078]
[1739787778958,3.08349014,2766.1,2766.0,0.72303]
[1739787780160,3.08349014,2766.1,2765.7,7.37640989]
[1739787780363,3.08349014,2766.1,2766.0,0.72303]
[1739787783571,3.08349014,2766.4,2765.8,0.5765]
[1739787783871,5.74349014,2766.4,2766.1,0.723]
[1739787784070,6.46643014,2766.4,2766.2,0.72296]
[1739787784268,5.74349014,2766.4,2765.8,0.5765]
[1739787784470,5.74349014,2766.4,2766.3,0.72295]
[1739787784872,5.74349014,2766.4,2765.8,0.5765]
[1739787785170,5.74349014,2766.4,2766.3,0.72295]
[1739787785372,6.46643014,2766.4,2766.2,0.72297]
[1739787785665,6.46643014,2766.4,2765.8,2.38415]
[1739787785666,0.72295,2766.3,2765.8,0.5765]
[1739787785873,5.74349014,2766.4,2766.1,0.723]
[1739787786069,6.46643014,2766.4,2766.2,0.72297]
[1739787786270,0.72297,2766.3,2766.1,0.72299]
[1739787786470,5.74349014,2766.4,2765.8,0.5765]
[1739787786666,3.08349014,2766.1,2765.8,0.5765]
[1739787786967,0.72305,2765.9,2765.7,0.72309]
[1739787787167,3.08349014,2765.8,2765.7,0.72309]
[1739787787564,3.08349014,2765.8,2765.6,3.2078]
[1739787787768,3.08349014,2765.8,2765.7,0.72311]
[1739787788569,6.29129014,2765.8,2765.6,0.72312]
[1739787788767,6.29129014,2765.8,2765.4,0.5608]
[1739787789073,3.08349014,2765.8,2765.7,0.72311]
[1739787791175,0.5623,2766.0,2765.5,3.2078]
[1739787791472,2.659,2766.2,2766.1,0.723]
[1739787792170,3.08349014,2766.4,2765.8,3.2078]
[1739787792370,0.00543016,2766.7,2766.6,0.72287]
[1739787792565,6.29129014,2767.1,2767.0,0.72277]
[1739787792764,22.7,2767.3,2767.2,0.72271]
[1739787792969,2.659,2767.3,2767.2,0.72271]
[1739787793273,2.659,2767.3,2766.7,0.5424]
[1739787793673,3.08349014,2767.1,2767.0,0.72275]
[1739787794377,3.08349014,2767.1,2766.8,7.62199983]
[1739787794669,6.29129014,2767.1,2766.7,0.72826016]
[1739787795071,6.29129014,2767.1,2766.7,0.00543016]
[1739787795273,6.29129014,2766.8,2766.7,0.00543016]
[1739787795573,0.72293,2766.4,2765.8,0.72306]
[1739787795765,3.08349014,2765.9,2765.7,0.72309]
[1739787795969,3.08349014,2765.9,2765.5,3.2078]
[1739787796276,3.08349014,2765.9,2765.8,0.72308]
[1739787796670,0.00543016,2766.1,2766.0,0.72301]
[1739787796872,2.66443016,2766.1,2766.0,0.72301]
[1739787797069,2.66443016,2766.1,2765.9,0.72305]
[1739787797268,2.66443016,2766.1,2765.8,7.71160476]
[1739787797575,2.66443016,2766.1,2765.8,10.91940476]
[1739787797877,2.66443016,2766.1,2766.0,0.72303]
[1739787798880,2.66443016,2766.1,2765.9,0.5735]
[1739787799376,2.66443016,2766.1,2766.0,0.72303]
[1739787799772,0.00543016,2766.1,2766.0,0.72303]
[1739787801974,0.00543016,2766.1,2766.0,8.3077766]
[1739787804175,0.00543016,2766.1,2766.0,7.5847466]
[1739787804682,0.00543016,2766.1,2765.8,3.2078]
[1739787804880,0.00543016,2766.1,2765.9,0.72304]
[1739787805080,0.00543016,2766.1,2765.8,3.2078]
[1739787805081,0.00543016,2766.1,2766.0,0.72303]
[1739787805484,0.00543016,2766.1,2766.0,8.36371622]
[1739787805784,0.00543016,2766.1,2766.0,0.72303]
[1739787807979,3.38644016,2766.1,2765.8,3.2078]
[1739787808185,6.52869882,2766.1,2765.9,0.72304]
[1739787808489,6.52869882,2766.1,2765.8,3.2078]
[1739787808679,6.52869882,2766.1,2765.8,3.93087]
[1739787808884,6.52869882,2766.1,2765.9,0.72304]
[1739787809185,7.25171882,2766.1,2765.9,0.72304]
[1739787809386,6.52869882,2766.1,2765.9,0.72304]
[1739787809777,7.25170882,2766.1,2765.9,0.72304]
[1739787809978,6.52869882,2766.1,2765.9,0.72304]
[1739787810181,7.25169882,2766.1,2765.9,0.72304]
[1739787810485,7.25171882,2766.1,2765.9,0.72305]
[1739787811387,6.52869882,2766.1,2765.8,3.2078]
[1739787811582,0.72304,2766.0,2765.8,3.93086]
[1739787812791,0.72304,2766.0,2765.9,0.72305]
[1739787812990,0.72304,2766.0,2765.8,3.93086]
[1739787813694,6.52869882,2766.1,2765.8,3.2078]
[1739787814190,3.87069882,2766.1,2766.0,0.72303]
[1739787814390,6.52869882,2766.1,2766.0,0.72303]
[1739787815190,3.87069882,2766.1,2766.0,0.72303]
[1739787815493,2.66343016,2766.1,2766.0,0.72303]
[1739787816989,2.66343016,2766.1,2765.8,3.2078]
[1739787817194,3.08440783,2765.9,2765.8,3.2078]
[1739787817396,3.80745783,2765.9,2765.8,3.2078]
[1739787818699,6.29220783,2765.9,2765.6,0.00543016]
[1739787818998,3.93091,2765.7,2765.6,0.00543016]
[1739787819599,0.72329,2765.1,2764.7,3.49889241]
[1739787819799,0.72329,2765.1,2763.9,2.93728864]
[1739787819800,3.80773783,2764.9,2764.4,4.337]
[1739787820101,3.08440783,2764.6,2764.4,5.06043]
[1739787820604,0.72335,2764.8,2764.4,1.85263]
[1739787820903,3.08440783,2764.6,2764.4,1.85263]
[1739787821303,3.08440783,2764.9,2764.4,1.1292]
[1739787821508,2.658,2764.8,2764.6,0.72337]
[1739787821899,3.08440783,2764.9,2764.6,0.72337]
[1739787822201,3.08440783,2764.9,2764.6,0.72339]
[1739787822409,3.2078,2765.6,2764.8,3.2078]
[1739787822706,0.72317,2765.5,2765.0,0.72327]
[1739787823004,6.29220783,2765.6,2764.9,7.43379613]
[1739787823305,3.08440783,2765.3,2764.9,7.43379613]
[1739787823803,3.2078,2765.5,2764.9,7.43379613]
[1739787824007,3.2078,2765.5,2765.4,0.72318]
[1739787824510,3.2078,2765.5,2765.1,0.5269]
[1739787824708,0.72319,2765.4,2765.1,0.5269]
[1739787824908,3.2078,2765.5,2765.1,8.81726917]
[1739787825204,3.93097,2765.5,2765.1,8.81726917]
[1739787825403,0.72323,2765.3,2765.0,0.526]
[1739787825604,0.72328,2765.1,2764.8,3.2078]
[1739787825812,0.72331,2765.0,2764.6,1.25028]
[1739787826010,3.2078,2765.1,2764.6,0.5269]
[1739787826211,3.93108,2765.1,2764.6,1.25028]
[1739787826510,3.93107,2765.1,2764.8,0.72334]
[1739787826712,3.2078,2765.1,2764.8,0.72334]
[1739787826907,3.2078,2765.1,2764.9,0.72331]
[1739787827211,3.2078,2765.1,2765.0,0.72329]
[1739787827413,2.658,2765.2,2764.8,3.2078]
[1739787827703,3.2078,2765.5,2765.4,0.72318]
[1739787828311,0.72312,2765.7,2765.4,0.72318]
[1739787828809,0.72311,2765.7,2765.4,0.72318]
[1739787829105,0.72314,2765.6,2765.4,0.72318]
[1739787829313,0.72314,2765.6,2765.1,3.2078]
[1739787829512,0.72314,2765.6,2765.4,0.72317]
[1739787829707,0.72313,2765.6,2765.4,0.72317]
[1739787830106,5.8658,2765.8,2765.3,0.7232]
[1739787830306,5.8658,2765.8,2765.4,0.72317]
[1739787830506,0.72313,2765.7,2765.4,0.72317]
[1739787830707,5.8658,2765.8,2765.1,3.2078]
[1739787830908,0.72314,2765.6,2765.1,3.2078]
[1739787831107,5.8658,2765.8,2765.1,3.2078]
[1739787831308,3.86724898,2765.6,2765.1,3.2078]